bitfinex/quotes_ETHUSD_20260304
["timestamp","ask_amount","ask_price","bid_price","bid_amount"]
[1772629990177,1.2138432,2063.0,2062.1,1.32053772]
[1772629990178,6.41874107,2063.0,2062.1,1.32053772]
[1772629990377,6.41874107,2063.0,2062.2,1.76455261]
[1772629990574,6.41874107,2063.0,2062.3,1.76455261]
[1772629990768,6.41874107,2063.0,2062.3,1.32053772]
[1772629991500,1.2138432,2063.0,2062.4,1.65605333]
[1772629991705,6.41874107,2063.0,2061.9,1.21242789]
[1772629991916,6.41874107,2063.0,2062.0,0.44400783]
[1772629992113,6.41874107,2063.0,2062.1,0.44400783]
[1772629992272,6.41874107,2063.0,2062.0,1.32514966]
[1772629992473,6.41874107,2063.0,2062.2,1.32514966]
[1772629993597,6.41874107,2063.0,2062.2,2.53744342]
[1772629993982,6.41874107,2063.0,2062.2,1.32514966]
[1772629994589,6.41874107,2063.0,2062.2,1.32614966]
[1772629994810,6.41874107,2063.0,2062.2,2.53844263]
[1772629995115,0.002,2062.8,2062.2,1.32614966]
[1772629995409,1.21206244,2062.6,2062.2,0.001]
[1772629996480,0.002,2062.8,2062.2,0.001]
[1772629996797,0.002,2063.0,2062.4,1.33184932]
[1772629997109,0.002,2063.0,2062.5,1.77581657]
[1772629997298,0.002,2063.0,2062.7,1.21200368]
[1772629997503,0.002,2063.0,2062.6,1.21201989]
[1772629998481,0.002,2063.1,2062.7,1.78521786]
[1772629998686,1.21366403,2063.3,2062.4,6.19036347]
[1772629998888,6.39735556,2063.3,2062.5,0.44355619]
[1772629999086,6.39735556,2063.3,2062.6,0.44355619]
[1772629999386,6.39735556,2063.3,2062.4,6.19036347]
[1772629999589,6.39735556,2063.3,2062.5,0.4434797]
[1772629999787,6.39735556,2063.3,2062.6,0.4434797]
[1772629999987,6.39735556,2063.3,2062.4,6.19036347]
[1772630000189,0.002,2063.3,2062.6,1.34529977]
[1772630000482,1.21365716,2063.3,2062.7,0.44320356]
[1772630000699,1.21365716,2063.3,2062.6,1.34529977]
[1772630001295,6.39734869,2063.3,2062.4,4.84866319]
[1772630001502,6.39734869,2063.3,2062.5,0.44284225]
[1772630001706,6.39734869,2063.3,2062.4,6.19557048]
[1772630001910,6.39734869,2063.3,2062.5,1.78970817]
[1772630002112,6.39734869,2063.3,2062.6,0.44280088]
[1772630002312,6.39734869,2063.3,2062.2,2.56747238]
[1772630002619,6.39734869,2063.3,2062.2,0.001]
[1772630004128,6.39734869,2063.3,2062.0,0.001]
[1772630004129,5.4373118,2063.1,2062.0,0.001]
[1772630004422,2.04776973,2063.1,2062.0,0.001]
[1772630004623,5.4373118,2063.0,2062.0,0.001]
[1772630004816,5.4373118,2062.8,2062.0,0.001]
[1772630005794,5.4373118,2062.6,2062.0,0.001]
[1772630006629,4.84796634,2063.0,2062.0,0.001]
[1772630006630,6.64908049,2063.1,2062.0,0.001]
[1772630006799,6.64908049,2063.1,2062.0,1.36170432]
[1772630007425,6.64908049,2063.1,2062.0,0.001]
[1772630008199,6.64908049,2063.1,2062.2,0.001]
[1772630008398,5.4373118,2062.8,2062.2,0.001]
[1772630009826,5.4373118,2062.8,2062.0,0.001]
[1772630009827,5.4373118,2062.6,2062.0,0.001]
[1772630011705,6.64943301,2062.5,2062.0,0.001]
[1772630015329,6.64943301,2062.5,2061.8,0.001]
[1772630016432,5.4373118,2062.3,2061.7,0.001]
[1772630016737,5.4373118,2061.6,2060.3,1.37285125]
[1772630017032,5.4373118,2061.6,2060.4,0.44360203]
[1772630017234,2.70905856,2061.7,2060.2,1.37371227]
[1772630017235,5.4373118,2061.5,2060.2,1.37371227]
[1772630017433,5.4373118,2061.5,2060.1,1.21451932]
[1772630017728,5.4373118,2061.5,2060.2,1.37371227]
[1772630018316,5.4373118,2061.3,2060.3,1.21341552]
[1772630018905,5.4373118,2061.3,2060.4,1.37445772]
[1772630019337,1.21276802,2061.4,2060.4,1.37445772]
[1772630020327,5.4373118,2061.4,2060.5,1.21329774]
[1772630020504,5.4373118,2061.4,2060.6,0.001]
[1772630022525,5.4373118,2061.4,2059.9,0.001]
[1772630022526,5.4373118,2060.6,2059.9,0.001]
[1772630022833,5.4373118,2061.1,2060.0,0.001]
[1772630024842,5.4373118,2060.9,2060.0,0.001]
[1772630025208,5.4373118,2060.9,2060.1,0.001]
[1772630025835,5.4373118,2060.9,2059.9,0.001]
[1772630026031,5.4373118,2060.9,2060.0,0.001]
[1772630026549,5.4373118,2060.7,2059.9,0.001]
[1772630026711,5.4373118,2060.5,2059.9,0.001]
[1772630027909,5.4373118,2060.5,2059.1,1.35692516]
[1772630028179,5.4373118,2060.5,2059.1,2.57103422]
[1772630028521,5.52887686,2060.3,2059.0,0.5680838]
[1772630028746,1.21347441,2060.2,2059.1,1.35287635]
[1772630028933,6.74235127,2060.2,2059.1,1.35287635]
[1772630029116,6.74235127,2060.2,2059.0,0.5680838]
[1772630029632,6.69235127,2060.2,2059.0,0.5680838]
[1772630030237,6.69235127,2060.2,2059.0,1e-08]
[1772630031317,6.69235127,2060.2,2059.0,0.04990561]
[1772630032125,6.69235127,2060.2,2059.0,1e-08]
[1772630032748,5.60705222,2060.1,2059.0,1e-08]
[1772630032928,5.60705222,2059.7,2059.0,1e-08]
[1772630033128,5.60705222,2059.7,2059.2,0.001]
[1772630033941,5.60705222,2059.7,2059.0,0.00100001]
[1772630034119,5.60655222,2059.5,2059.0,0.00100001]
[1772630034853,5.60655222,2059.3,2059.0,0.00100001]
[1772630035030,1.2139458,2059.4,2059.0,0.00100001]
[1772630035722,6.82049802,2059.4,2058.7,0.001]
[1772630035926,5.60655222,2059.3,2058.7,0.001]
[1772630036134,5.60655222,2059.1,2058.0,1.26282148]
[1772630036320,5.60655222,2059.1,2058.1,0.04590799]
[1772630037252,6.32322215,2059.5,2058.3,0.04590799]
[1772630037253,5.60655222,2059.5,2058.3,0.04590799]
[1772630037825,5.60655222,2059.2,2057.9,1.25864294]
[1772630038260,5.60655222,2059.2,2058.0,0.04164239]
[1772630039160,5.60655222,2059.2,2058.2,0.03947545]
[1772630039161,5.60655222,2059.0,2058.2,0.03947545]
[1772630040153,1.21412267,2059.1,2058.2,0.03947545]
[1772630040731,1.21388686,2059.5,2058.2,0.03947545]
[1772630041230,1.21388686,2059.5,2058.4,0.03500003]
[1772630041431,1.21376899,2059.8,2058.4,0.03500003]
[1772630042332,1.21376899,2059.8,2058.5,0.44090746]
[1772630042537,6.82024781,2059.9,2058.6,0.03271547]
[1772630043239,6.82024781,2059.9,2058.8,0.03041476]
[1772630043552,1.21369559,2059.9,2058.8,0.03041476]
[1772630044276,6.82024781,2059.9,2058.8,0.03041476]
[1772630045269,6.82024781,2059.9,2058.9,1.24001661]
[1772630045461,6.82024781,2059.9,2058.9,1.21424061]
[1772630045635,6.82024781,2059.9,2059.0,0.025776]
[1772630046449,6.82024781,2059.9,2059.0,0.026776]
[1772630047340,6.82024781,2059.9,2059.1,1.21412267]
[1772630047951,1.21369559,2059.9,2059.2,0.02110647]
[1772630048265,1.21351911,2060.2,2059.2,0.02110647]
[1772630049464,1.21351911,2060.2,2059.4,0.01633362]
[1772630050700,6.82007133,2060.2,2059.4,0.01633362]
[1772630050882,6.82007133,2060.2,2059.3,1.21400475]
[1772630051171,6.82007133,2060.2,2059.2,0.01392132]
[1772630051376,6.82007133,2060.2,2059.4,0.0115277]
[1772630051574,6.82007133,2060.2,2059.5,1.21388686]
[1772630051781,1.21351911,2060.2,2059.5,1.22541456]
[1772630052749,1.21544186,2060.3,2059.5,1.22541456]
[1772630053072,1.21543132,2060.3,2059.6,0.44434359]
[1772630053275,1.21543132,2060.3,2059.7,0.44433154]
[1772630053483,1.21543132,2060.3,2059.5,1.22541456]
[1772630053647,0.002,2060.3,2059.7,1.21376899]
[1772630054550,1.21529877,2060.5,2059.9,0.00429687]
[1772630054774,1.21529877,2060.5,2059.7,1.21806586]
[1772630054972,6.82185099,2060.5,2059.8,0.44417925]
[1772630055182,6.82185099,2060.5,2059.6,1.21377889]
[1772630055483,6.82185099,2060.5,2059.7,0.44584734]
[1772630055682,6.82185099,2060.5,2059.9,1.21365114]
[1772630056079,1.21529877,2060.5,2059.9,1.21548781]
[1772630056273,6.8217322,2060.8,2060.0,0.44359055]
[1772630056584,5.60655222,2060.6,2059.5,3.81]
[1772630056752,5.60655222,2060.6,2059.6,1.6575181]
[1772630056958,5.60655222,2060.6,2059.7,0.44371721]
[1772630057855,6.81984996,2060.5,2059.7,1.65744003]
[1772630058050,6.81984996,2060.5,2059.8,0.44371721]
[1772630058251,6.81984996,2060.5,2059.7,1.21372282]
[1772630058484,6.81984996,2060.5,2059.8,0.44318812]
[1772630058684,6.81984996,2060.5,2059.7,1.21372282]
[1772630058888,0.002,2060.1,2059.8,0.44318817]
[1772630059177,6.81984996,2060.5,2059.7,1.21372282]
[1772630059386,0.002,2060.3,2059.8,0.44301716]
[1772630059561,0.002,2060.3,2059.7,1.21372282]
[1772630059757,0.002,2060.3,2059.8,0.44303561]
[1772630059958,6.81984996,2060.5,2059.9,1.21365114]
[1772630060156,0.002,2060.6,2059.9,1.21365114]
[1772630060861,0.002,2060.8,2060.0,0.44280576]
[1772630061193,1.21514175,2060.8,2059.9,1.21365114]
[1772630062193,4.80401719,2061.0,2059.9,1.21365114]
[1772630062357,10.41056941,2061.0,2059.9,1.21365114]
[1772630062557,10.41056941,2061.0,2060.0,0.44261988]
[1772630062780,10.41056941,2061.0,2060.1,0.44257903]
[1772630062957,10.41056941,2061.0,2059.9,1.21365114]
[1772630062958,5.60655222,2060.9,2059.9,1.21365114]
[1772630063163,5.60655222,2060.9,2060.0,0.44247938]
[1772630063368,5.60655222,2060.9,2059.9,1.21365114]
[1772630063570,5.60655222,2060.9,2060.0,0.4423483]
[1772630063793,5.60655222,2060.9,2060.1,0.44233708]
[1772630063963,5.60655222,2060.9,2059.9,1.21365114]
[1772630064163,5.60655222,2060.9,2060.0,0.44233919]
[1772630064380,6.81966159,2060.9,2059.9,1.21365114]
[1772630064577,6.81966159,2060.9,2060.0,0.44203984]
[1772630064782,6.81966159,2060.9,2060.1,0.44204656]
[1772630064979,6.81966159,2060.9,2059.9,1.21365114]
[1772630065180,6.81966159,2060.9,2060.0,0.44205066]
[1772630065181,5.60655222,2060.9,2060.0,0.44205066]
[1772630065384,6.8196183,2060.9,2060.1,0.44205066]
[1772630065579,6.8196183,2060.9,2059.9,1.21365114]
[1772630065774,6.8196183,2060.9,2060.0,0.44196642]
[1772630065974,6.8196183,2060.9,2060.1,0.44196642]
[1772630066172,6.8196183,2060.9,2059.9,1.21365114]
[1772630066494,6.81961522,2060.9,2060.1,1.21353332]
[1772630066996,6.81961873,2060.9,2060.1,1.21353332]
[1772630068364,5.60655222,2060.9,2060.3,1.21341552]
[1772630068575,6.81962536,2060.9,2060.3,1.21341552]
[1772630069681,6.81962536,2060.9,2060.1,4.8540376]
[1772630070194,6.81962536,2060.9,2060.1,1.21353332]
[1772630070398,6.81962536,2060.9,2059.6,1.21377962]
[1772630070893,6.81962536,2060.9,2059.3,1.21400475]
[1772630071099,6.81962536,2060.9,2059.4,0.44373096]
[1772630071305,6.81962536,2060.9,2059.5,0.44373096]
[1772630071478,6.81962536,2060.9,2059.3,1.21400475]
[1772630071670,6.81962536,2060.9,2059.4,0.44389926]
[1772630071867,6.81962536,2060.9,2059.5,0.44389926]
[1772630072070,6.81962536,2060.9,2059.3,1.21400475]
[1772630072383,6.81962536,2060.9,2059.4,1.65790823]
[1772630072578,5.60605222,2060.6,2059.5,0.44398286]
[1772630072893,5.60605222,2060.6,2059.6,0.001]
[1772630074268,5.60605222,2060.4,2059.6,0.001]
[1772630075702,5.60605222,2060.4,2059.0,0.001]
[1772630075703,5.60605222,2060.4,2059.0,1.21514743]
[1772630075900,5.60605222,2060.4,2059.1,0.44449403]
[1772630076197,5.60605222,2060.4,2059.0,1.21514743]
[1772630076368,5.60605222,2060.2,2059.1,1.65861087]
[1772630076568,5.60605222,2060.2,2059.0,1.21513683]
[1772630076794,5.60605222,2060.2,2059.1,0.44454218]
[1772630077006,5.60605222,2060.2,2059.0,1.21513683]
[1772630077206,5.60605222,2060.2,2059.1,0.44458881]
[1772630077411,5.60605222,2060.2,2059.0,1.21513683]
[1772630077708,5.60605222,2060.2,2059.1,0.44459542]
[1772630077901,5.60605222,2060.2,2059.0,1.21513683]
[1772630078082,5.60605222,2060.2,2059.1,0.44457692]
[1772630078281,5.60605222,2060.2,2059.0,1.21513683]
[1772630078482,5.60605222,2060.0,2059.2,1.21406371]
[1772630080416,5.60605222,2060.0,2059.3,0.44439393]
[1772630080616,6.81964649,2060.0,2059.4,0.44439393]
[1772630080910,6.81964649,2060.0,2059.0,0.001]
[1772630080911,5.60605222,2060.0,2059.5,0.44427378]
[1772630081110,5.60605222,2060.6,2059.6,0.44414856]
[1772630081318,5.60605222,2060.6,2059.0,0.001]
[1772630081319,5.60605222,2060.5,2059.0,0.001]
[1772630081487,5.60605222,2060.5,2059.1,0.44415326]
[1772630081687,5.60605222,2060.5,2059.2,0.44415326]
[1772630081887,5.60605222,2060.5,2059.3,0.44415326]
[1772630082104,5.60605222,2060.5,2059.4,0.44415326]
[1772630082301,5.60605222,2060.5,2059.5,0.44415326]
[1772630082501,5.60605222,2060.3,2059.6,1.65796556]
[1772630082701,5.60605222,2060.3,2059.6,1.2138123]
[1772630083507,5.60605222,2060.3,2059.0,4.85767332]
[1772630083688,5.60605222,2060.3,2059.1,1.65821329]
[1772630083884,5.60605222,2060.3,2059.2,0.44409062]
[1772630084120,5.60605222,2060.3,2059.3,0.44409062]
[1772630084320,5.60605222,2060.3,2059.4,0.44409062]
[1772630084492,5.60605222,2060.3,2059.5,1.65797748]
[1772630084493,1.21347441,2060.2,2059.5,1.65797748]
[1772630084694,1.21347441,2060.2,2059.6,0.44409062]
[1772630084893,1.21347441,2060.2,2059.5,1.21388686]
[1772630085090,1.21347441,2060.2,2059.6,0.44400126]
[1772630085292,6.81952663,2060.2,2059.5,1.21388686]
[1772630085504,6.81952663,2060.2,2059.6,0.44405269]
[1772630085719,6.81952663,2060.2,2059.5,1.21388686]
[1772630085891,6.81952663,2060.2,2059.1,4.8564802]
[1772630086093,6.81952663,2060.2,2059.2,0.44409871]
[1772630086291,6.81952663,2060.2,2059.3,0.44409871]
[1772630086492,6.81952663,2060.2,2059.4,0.44409871]
[1772630086726,6.81952663,2060.2,2059.7,0.001]
[1772630089027,1.21344565,2060.3,2059.7,0.001]
[1772630089204,4.85554748,2060.4,2059.7,0.001]
[1772630089205,6.82145584,2060.4,2059.7,0.001]
[1772630101049,0.002,2060.2,2059.8,0.001]
[1772630101207,5.60605222,2060.1,2059.8,0.001]
[1772630101610,5.60605222,2060.1,2059.7,0.001]
[1772630101611,6.81964445,2060.0,2059.7,0.001]
[1772630102041,6.81964445,2060.0,2059.0,0.001]
[1772630102237,6.81964445,2060.0,2059.1,0.44574041]
[1772630102440,0.002,2060.2,2059.2,0.44574041]
[1772630102625,0.002,2060.2,2059.3,0.44574041]
[1772630102830,0.002,2060.4,2059.5,3.38384684]
[1772630103143,0.002,2060.6,2059.7,3.38384684]
[1772630103365,0.002,2060.6,2059.8,0.44574041]
[1772630103651,0.002,2060.6,2060.0,1.21359223]
[1772630103864,0.002,2060.6,2060.1,0.44574041]
[1772630104037,0.002,2060.6,2060.0,1.21359223]
[1772630104038,0.002,2060.6,2060.2,0.44574041]
[1772630104358,0.002,2060.6,2060.3,0.44574041]
[1772630104556,0.002,2060.9,2060.0,1.21359223]
[1772630104727,6.8206279,2060.9,2060.1,0.44428793]
[1772630104926,6.8206279,2060.9,2059.9,1.21360461]
[1772630105255,6.8206279,2060.9,2059.5,1.21382792]
[1772630105753,6.8206279,2060.9,2059.4,4.85554746]
[1772630105936,6.8206279,2060.9,2059.4,8.2393943]
[1772630106133,6.8206279,2060.9,2059.5,3.38384684]
[1772630106337,6.8206279,2060.9,2059.6,3.38384684]
[1772630106840,6.8206279,2060.9,2059.5,3.38384684]
[1772630107938,6.8206279,2060.9,2059.6,1.21382792]
[1772630108958,6.8206236,2060.9,2059.7,3.38384684]
[1772630109159,6.8206236,2060.9,2059.6,1.21382792]
[1772630109457,6.8206236,2060.9,2059.4,4.85566047]
[1772630109629,5.60555222,2060.5,2059.0,1.21514072]
[1772630109825,5.60555222,2060.3,2059.0,0.001]
[1772630110052,5.60555222,2060.1,2059.0,0.001]
[1772630110454,5.99480839,2060.1,2059.0,0.001]
[1772630110628,5.60555222,2060.1,2059.0,0.001]
[1772630111670,7.91767599,2060.1,2059.0,0.001]
[1772630111869,5.60555222,2060.0,2059.0,0.001]
[1772630112055,5.60555222,2059.8,2059.0,0.001]
[1772630113269,5.60555222,2059.7,2059.0,0.001]
[1772630114159,6.81938014,2059.6,2059.0,0.001]
[1772630114359,6.81938014,2059.6,2059.2,0.001]
[1772630114764,5.60555222,2059.6,2059.2,0.001]
[1772630114969,1.21381537,2059.7,2059.2,0.001]
[1772630115354,5.60555222,2059.8,2059.2,0.001]
[1772630116084,1.21362817,2060.0,2059.2,0.001]
[1772630116250,5.60555222,2059.8,2059.2,0.001]
[1772630116996,3.05262817,2060.0,2059.2,0.001]
[1772630117476,8.65818039,2060.0,2059.2,0.001]
[1772630118154,5.60555222,2059.9,2059.2,0.001]
[1772630119282,5.60555222,2059.9,2059.0,0.001]
[1772630119585,3.05262817,2060.0,2059.0,0.001]
[1772630119586,5.60505222,2059.7,2059.0,0.001]
[1772630119770,7.44405222,2059.7,2059.0,0.001]
[1772630119953,5.60505222,2059.6,2059.0,0.001]
[1772630120153,6.81888762,2059.6,2059.0,0.001]
[1772630120759,5.60505222,2059.9,2059.0,0.001]
[1772630121082,0.002,2060.4,2059.0,0.001]
[1772630121083,5.60705222,2060.4,2059.0,0.001]
[1772630121260,6.82041359,2060.4,2059.0,0.001]
[1772630123478,6.82041268,2060.4,2059.0,0.001]
[1772630124190,6.82041268,2060.4,2059.0,1.21518164]
[1772630126396,6.82041268,2060.4,2059.0,0.001]
[1772630126597,6.82041268,2060.4,2059.2,0.001]
[1772630126809,0.002,2060.2,2059.2,0.001]
[1772630126971,5.60505222,2060.1,2059.2,0.001]
[1772630127883,5.60505222,2059.9,2059.2,0.001]
[1772630128681,5.60505222,2059.7,2059.2,0.001]
[1772630130198,6.81871405,2059.9,2059.2,0.001]
[1772630130499,6.81871405,2059.9,2059.0,0.001]
[1772630132678,1.21376899,2059.7,2059.0,0.001]
[1772630132885,6.81882121,2059.7,2059.0,0.001]
[1772630133204,5.60505222,2060.0,2059.0,0.001]
[1772630133428,0.002,2060.2,2059.0,5.07284684]
[1772630133627,1.21549528,2060.2,2059.0,5.07284684]
[1772630133831,0.002,2060.2,2059.0,5.07284684]
[1772630134328,0.002,2060.4,2059.1,3.38384684]
[1772630134722,0.002,2060.4,2059.2,1.21406371]
[1772630135206,0.002,2060.4,2059.3,3.44938284]
[1772630136319,5.60705222,2060.6,2059.3,3.44938284]
[1772630136514,6.8203063,2060.6,2059.4,3.38384684]
[1772630136832,5.60705222,2060.6,2059.5,1.21388686]
[1772630137003,5.60705222,2060.9,2059.5,1.21388686]
[1772630137221,5.60705222,2060.9,2059.6,3.38384684]
[1772630137625,6.82012577,2060.9,2059.6,3.38384684]
[1772630138163,5.60705222,2060.9,2059.5,4.5977337]
[1772630138539,5.60705222,2060.9,2059.7,3.38384684]
[1772630138723,5.60705222,2060.9,2059.8,1.21371006]
[1772630138922,5.60705222,2060.7,2059.8,2.90171006]
[1772630139752,5.60705222,2060.7,2059.8,1.21371006]
[1772630140889,5.60505222,2060.5,2059.5,4.85484027]
[1772630141072,5.60505222,2060.5,2059.3,4.85555721]
[1772630142359,6.13912159,2060.7,2059.4,5.03867945]
[1772630142655,6.13912159,2060.7,2059.5,5.03867945]
[1772630142860,6.13912159,2060.7,2059.6,1.21382792]
[1772630143025,6.13912159,2060.7,2059.7,5.03867945]
[1772630143026,0.002,2060.7,2059.7,5.03867945]
[1772630143855,1.21518117,2060.7,2059.7,5.03867945]
[1772630144052,4.92593252,2060.7,2059.7,5.03867945]
[1772630144224,6.13911335,2060.7,2059.7,5.03867945]
[1772630144432,1.21312276,2060.8,2059.8,5.03867945]
[1772630144830,4.92393252,2060.8,2059.9,1.21365114]
[1772630145667,4.92393252,2060.8,2059.9,6.25233059]
[1772630147144,6.1371125,2060.7,2059.9,6.25233059]
[1772630147341,6.1371125,2060.7,2059.7,1.21373793]
[1772630147540,6.1371125,2060.7,2059.7,6.25241738]
[1772630148864,6.1371125,2060.7,2059.7,1.21373793]
[1772630149039,6.1371125,2060.7,2059.5,1.21385051]
[1772630149568,6.1371125,2060.7,2059.5,6.65229006]
[1772630150140,5.13118703,2060.5,2059.5,6.65229006]
[1772630150562,5.13318703,2060.5,2059.5,6.65229006]
[1772630151463,1.21335662,2060.4,2059.5,6.65229006]
[1772630151643,6.34454365,2060.4,2059.5,6.65229006]
[1772630152560,6.34454365,2060.4,2059.2,1.2150429]
[1772630152941,6.34454365,2060.4,2059.2,0.001]
[1772630153150,5.13118703,2060.2,2059.2,6.65350173]
[1772630153371,6.34472035,2060.1,2059.2,6.65350173]
[1772630153554,6.34472035,2060.1,2059.2,0.001]
[1772630154081,6.34472035,2060.1,2059.2,1.21505889]
[1772630154288,6.34472035,2060.1,2059.2,6.65349844]
[1772630155280,6.34472035,2060.1,2059.2,6.65350163]
[1772630155575,6.34483817,2059.9,2059.2,0.001]
[1772630157179,6.34483817,2059.9,2059.2,1.21505505]
[1772630157348,6.34483817,2059.9,2059.2,0.001]
[1772630158865,8.21383817,2059.9,2059.2,0.001]
[1772630160379,5.13118703,2059.8,2059.0,0.001]
[1772630160676,3.08265114,2059.9,2059.0,0.001]
[1772630160677,5.13118703,2059.6,2059.0,0.001]
[1772630161446,1.869,2059.8,2059.0,1.21516451]
[1772630161686,1.21376899,2059.7,2059.0,1.21516451]
[1772630161892,1.21375415,2059.8,2059.0,6.65360406]
[1772630162097,3.08261539,2060.0,2059.0,6.65360406]
[1772630162668,5.13118703,2059.9,2059.0,6.65360406]
[1772630163163,6.34652741,2060.5,2059.4,5.43943955]
[1772630163367,1.21530527,2060.5,2059.4,5.43943955]
[1772630163560,0.002,2060.5,2059.6,5.43843955]
[1772630165605,0.002,2060.5,2059.8,5.43843955]
[1772630166752,5.13318703,2060.5,2059.7,1.21376899]
[1772630167588,5.13118703,2060.3,2059.4,0.001]
[1772630167779,5.13118703,2060.1,2059.1,0.001]
[1772630169461,5.13118703,2059.9,2059.1,0.001]
[1772630169685,5.13118703,2059.7,2059.1,0.001]
[1772630169897,5.13118703,2059.5,2059.1,0.001]
[1772630170395,5.13118703,2059.5,2059.0,0.001]
[1772630171300,7.00618703,2059.5,2059.0,0.001]
[1772630171468,5.13118703,2059.4,2059.0,0.001]
[1772630171667,1.21400475,2059.3,2059.0,0.001]
[1772630173904,4.85555408,2059.5,2059.0,0.001]
[1772630175017,4.85555408,2059.5,2059.2,0.001]
[1772630181290,5.14815292,2059.4,2059.0,0.001]
[1772630182424,6.36215767,2059.3,2059.0,0.001]
[1772630182632,1.882,2059.2,2059.0,0.001]
[1772630182836,6.77887451,2059.2,2059.0,0.001]
[1772630184011,4.89687451,2059.1,2058.3,1.43469134]
[1772630184220,4.89687451,2059.1,2058.4,0.002]
[1772630184423,4.89687451,2058.9,2058.4,0.002]
[1772630184621,1.883,2058.8,2058.4,0.002]
[1772630184815,6.77987451,2058.8,2058.4,0.002]
[1772630185401,6.11105615,2059.0,2058.4,0.002]
[1772630185621,1.883,2058.9,2058.4,0.002]
[1772630185945,6.77987451,2058.9,2058.4,0.002]
[1772630186508,1.21429959,2058.8,2058.4,0.002]
[1772630186703,6.1111741,2058.8,2058.4,0.002]
[1772630187230,6.1111741,2058.8,2057.6,6.00775681]
[1772630187430,6.1111741,2058.8,2057.4,1.21508428]
[1772630187597,4.89687451,2058.5,2057.1,6.00805455]
[1772630187799,4.89687451,2058.3,2057.1,4.79279464]
[1772630188194,4.89687451,2058.3,2057.1,6.00808937]
[1772630188396,6.11152809,2058.2,2058.1,0.001]
[1772630188702,7.99552809,2058.2,2058.1,0.001]
[1772630188918,1.21465358,2058.2,2058.1,0.001]
[1772630190025,3.09862979,2058.3,2058.1,0.001]
[1772630192138,1.21455913,2058.4,2058.1,0.001]
[1772630192711,1.886,2058.6,2058.1,0.001]
[1772630194208,6.78287451,2058.6,2058.1,0.001]
[1772630194846,1.21447656,2058.5,2058.1,0.001]
[1772630195748,4.89687451,2058.4,2057.2,4.79279464]
[1772630196047,4.89687451,2058.4,2057.2,6.00803866]
[1772630196211,4.89687451,2058.4,2057.3,4.79279464]
[1772630196412,4.89687451,2058.4,2057.2,1.21524402]
[1772630196622,4.89687451,2058.4,2057.2,6.00803866]
[1772630196838,4.89687451,2058.2,2057.2,6.00803011]
[1772630197040,1.886,2058.1,2057.2,6.00803011]
[1772630197232,4.89687451,2058.0,2057.2,4.79279464]
[1772630197436,4.89687451,2058.0,2057.2,6.00803162]
[1772630198212,6.11146907,2058.3,2057.3,4.79279464]
[1772630198444,1.886,2058.2,2057.3,4.79279464]
[1772630198948,1.21471259,2058.1,2057.4,6.00792052]
[1772630199348,3.1006983,2058.2,2057.5,4.79279464]
[1772630200632,1.21466086,2058.2,2057.5,4.79279464]
[1772630200834,0.002,2058.4,2057.6,6.00780241]
[1772630201152,1.887,2058.4,2057.6,6.00780241]
[1772630201454,1.887,2058.4,2057.7,4.79279464]
[1772630202031,4.89687451,2058.3,2057.5,1.21503928]
[1772630202222,4.89687451,2058.3,2057.4,0.001]
[1772630202742,4.89687451,2058.3,2057.4,1.21612527]
[1772630203050,4.89687451,2058.1,2057.4,0.001]
[1772630205054,6.11164613,2058.0,2057.4,0.001]
[1772630205220,4.89687451,2057.8,2057.4,0.001]
[1772630205421,7.99364613,2058.0,2057.4,0.001]
[1772630205617,4.89687451,2057.9,2057.4,0.001]
[1772630207535,6.11176419,2057.8,2057.4,0.001]
[1772630208496,1.21488968,2057.8,2057.4,0.001]
[1772630209149,9.59306433,2058.3,2057.4,0.001]
[1772630209924,11.47506433,2058.3,2057.4,0.001]
[1772630210329,4.7346343,2058.2,2057.4,0.001]
[1772630211157,6.6166343,2058.1,2057.4,0.001]
[1772630211345,4.7346343,2058.0,2057.4,0.001]
[1772630211549,1.21483065,2057.9,2057.4,0.001]
[1772630213731,1.21459456,2058.3,2057.4,4.77589605]
[1772630213979,0.002,2058.4,2057.4,4.77589605]
[1772630214138,1.21646657,2058.6,2057.4,4.77589605]
[1772630214139,1.21642493,2058.6,2057.6,4.76634894]
[1772630214467,0.002,2058.6,2057.7,4.76634894]
[1772630214737,1.21643408,2058.6,2057.7,4.76634894]
[1772630214963,0.002,2058.4,2057.7,4.76634894]
[1772630215875,0.002,2058.4,2057.8,5.97281256]
[1772630216364,0.002,2058.4,2057.7,1.21490065]
[1772630216550,4.7366343,2058.4,2057.7,1.21490065]
[1772630216753,0.002,2058.4,2057.8,4.74950936]
[1772630217868,0.002,2058.4,2057.6,0.001]
[1772630218040,4.7366343,2058.4,2057.7,1.21491522]
[1772630219457,0.002,2058.4,2057.7,5.93947526]
[1772630219854,0.002,2058.4,2057.6,4.86087523]
[1772630219855,1.21459456,2058.3,2057.6,0.001]
[1772630220776,9.59501257,2058.4,2057.6,0.001]
[1772630220777,0.002,2058.4,2057.6,4.71737151]
[1772630221169,1.879,2058.9,2057.6,4.71737151]
[1772630221170,4.7366343,2059.3,2058.0,4.70622024]
[1772630221347,5.95068672,2059.3,2058.2,4.70622024]
[1772630221547,4.7366343,2059.3,2058.2,4.70622024]
[1772630221773,5.95064482,2059.3,2058.3,4.70622024]
[1772630222047,0.002,2059.3,2058.5,4.70622024]
[1772630222261,1.21588686,2059.5,2058.5,4.70622024]
[1772630222462,4.7346343,2059.6,2058.5,4.69826502]
[1772630222660,1.21379948,2059.7,2058.5,4.69826502]
[1772630222661,1.21381436,2059.7,2058.6,4.69826502]
[1772630223039,1.21381436,2059.7,2058.5,2.27522028]
[1772630223040,1.21381436,2059.7,2058.8,4.69826502]
[1772630223240,1.21357778,2060.1,2058.8,4.69034651]
[1772630223510,1.21357778,2060.1,2058.9,4.69034651]
[1772630224147,4.7346343,2060.0,2059.0,1.21418164]
[1772630224345,4.7346343,2060.0,2059.0,5.89661853]
[1772630225554,4.7346343,2060.0,2059.0,1.21418164]
[1772630226251,4.7346343,2059.8,2058.8,4.85672656]
[1772630226662,4.7346343,2059.8,2058.8,9.52337537]
[1772630228293,1.21376899,2059.7,2059.0,0.001]
[1772630228510,5.94840329,2059.7,2059.0,0.001]
[1772630229294,1.21570105,2059.9,2059.1,4.6434619]
[1772630229803,5.95033535,2059.9,2059.1,4.6434619]
[1772630230101,4.7346343,2059.8,2059.1,4.6434619]
[1772630230265,1.21376899,2059.7,2059.2,1.21406371]
[1772630230902,5.94840329,2059.7,2059.0,1.21514182]
[1772630231762,0.002,2059.9,2059.1,4.62823668]